fUSD/lending_fUSD_20250427
["ID","MTS","AMOUNT","RATE_DAILY","PERIOD"]
[359173603,1745772635622,-500.0,0.00019964,2]
[359173604,1745772635631,-296.18,0.00019964,2]
[359173605,1745772635640,-500.0,0.00019964,2]
[359173606,1745772635649,-500.0,0.00019964,2]
[359173607,1745772635659,-480.0,0.00019964,2]
[359173608,1745772635668,-500.0,0.00019965,2]
[359173609,1745772635677,-503.17268255,0.00019965,2]
[359173610,1745772635686,-500.0,0.00019965,2]
[359173611,1745772635695,-500.0,0.00019965,2]
[359173612,1745772635705,-524.45178682,0.00019965,2]
[359173613,1745772635714,-442.51424453,0.00019965,2]
[359173614,1745772635723,-500.56979259,0.00019965,2]
[359173615,1745772635733,-480.0,0.00019965,2]
[359173616,1745772635744,-480.0,0.00019965,2]
[359173617,1745772635754,-269.02955885,0.00019965,2]
[359173618,1745772635764,-284.41433455,0.00019965,2]
[359173619,1745772635773,-294.92650655,0.00019965,2]
[359173620,1745772635782,-480.0,0.00019965,2]
[359173621,1745772635791,-480.0,0.00019965,2]
[359173622,1745772635799,-480.0,0.00019965,2]
[359173623,1745772635809,-293.26636695,0.00019965,2]
[359173624,1745772635819,-480.0,0.00019965,2]
[359173625,1745772635830,-425.1659554,0.00019965,2]
[359173626,1745772635839,-500.0,0.00019965,2]
[359173627,1745772635850,-480.0,0.00019965,2]
[359173628,1745772635860,-610.87,0.00019965,2]
[359173629,1745772635869,-500.0,0.00019965,2]
[359173630,1745772635878,-565.76955078,0.00019965,2]
[359173631,1745772635889,-480.0,0.00019965,2]
[359173632,1745772635898,-500.0,0.00019965,2]
[359173633,1745772635907,-500.0,0.00019965,2]
[359173634,1745772635917,-500.0,0.00019965,2]
[359173635,1745772635925,-480.0,0.00019965,2]
[359173636,1745772635935,-480.0,0.00019965,2]
[359173637,1745772635944,-500.0,0.00019965,2]
[359173638,1745772635953,-500.0,0.00019965,2]
[359173639,1745772635962,-500.0,0.00019965,2]
[359173640,1745772635972,-500.0,0.00019965,2]
[359173641,1745772635981,-480.0,0.00019965,2]
[359173642,1745772635991,-500.0,0.00019965,2]
[359173643,1745772636000,-500.0,0.00019965,2]
[359173644,1745772636009,-500.0,0.00019965,2]
[359173645,1745772636018,-500.0,0.00019965,2]
[359173646,1745772636027,-500.0,0.00019965,2]
[359173647,1745772636037,-499.544668,0.00019965,2]
[359173648,1745772636046,-480.0,0.00019965,2]
[359173649,1745772636056,-500.0,0.00019965,2]
[359173650,1745772636065,-480.0,0.00019965,2]
[359173651,1745772636074,-480.0,0.00019965,2]
[359173652,1745772636083,-480.0,0.00019965,2]
[359173653,1745772636092,-540.9,0.00019965,2]
[359173654,1745772636102,-500.0,0.00019965,2]
[359173655,1745772636112,-500.0,0.00019965,2]
[359173656,1745772636120,-480.0,0.00019965,2]
[359173657,1745772636129,-480.0,0.00019965,2]
[359173658,1745772636139,-500.0,0.00019965,2]
[359173659,1745772636148,-500.0,0.00019965,2]
[359173660,1745772636158,-500.0,0.00019965,2]
[359173661,1745772636167,-500.0,0.00019965,2]
[359173662,1745772636176,-546.84931808,0.00019965,2]
[359173663,1745772636186,-508.07170698,0.00019965,2]
[359173664,1745772636195,-500.0,0.00019965,2]
[359173665,1745772636204,-506.69372973,0.00019965,2]
[359173666,1745772636214,-480.0,0.00019965,2]
[359173667,1745772636223,-480.0,0.00019965,2]
[359173668,1745772636232,-500.0,0.00019965,2]
[359173669,1745772636241,-558.58,0.00019965,2]
[359173670,1745772636250,-500.0,0.00019965,2]
[359173671,1745772636259,-509.05754148,0.00019965,2]
[359173672,1745772636269,-553.21,0.00019965,2]
[359173673,1745772636278,-547.00197037,0.00019965,2]
[359173674,1745772636287,-622.98,0.00019965,2]
[359173675,1745772636297,-500.0,0.00019965,2]
[359173676,1745772636306,-514.86796535,0.00019965,2]
[359173677,1745772636318,-480.0,0.00019965,2]
[359173678,1745772636329,-500.0,0.00019965,2]
[359173679,1745772636340,-480.0,0.00019965,2]
[359173680,1745772636353,-500.0,0.00019965,2]
[359173681,1745772636363,-480.0,0.00019965,2]
[359173682,1745772636372,-500.0,0.00019965,2]
[359173683,1745772636383,-537.39,0.00019965,2]
[359173684,1745772636394,-500.0,0.00019965,2]
[359173685,1745772636403,-500.0,0.00019965,2]
[359173686,1745772636413,-480.0,0.00019965,2]
[359173687,1745772636424,-500.0,0.00019965,2]
[359173688,1745772636435,-598.47190734,0.00019965,2]
[359173689,1745772636445,-1243.84,0.00019965,2]
[359173690,1745772636455,-503.45534379,0.00019965,2]
[359173691,1745772636635,-500.0,0.00019965,2]
[359173692,1745772636645,-500.0,0.00019965,2]
[359173693,1745772636654,-500.46,0.00019965,2]
[359173694,1745772636665,-509.81921147,0.00019965,2]
[359173695,1745772636675,-480.0,0.00019965,2]
[359173696,1745772636686,-500.0,0.00019965,2]
[359173697,1745772636696,-1249.9,0.00019965,2]
[359173698,1745772636705,-480.0,0.00019965,2]
[359173699,1745772636715,-507.16582156,0.00019965,2]
[359173700,1745772636725,-480.0,0.00019965,2]
[359173701,1745772636735,-500.0,0.00019965,2]
[359173702,1745772636745,-539.4,0.00019965,2]
[359173703,1745772636756,-500.0,0.00019965,2]
[359173704,1745772636765,-480.0,0.00019965,2]
[359173705,1745772636775,-480.0,0.00019965,2]
[359173706,1745772636784,-480.0,0.00019965,2]
[359173707,1745772636793,-500.0,0.00019965,2]
[359173708,1745772636802,-480.0,0.00019965,2]
[359173709,1745772636811,-514.53,0.00019965,2]
[359173710,1745772636822,-480.0,0.00019965,2]
[359173711,1745772636831,-480.0,0.00019965,2]
[359173712,1745772636841,-480.0,0.00019965,2]
[359173713,1745772636851,-500.0,0.00019965,2]
[359173714,1745772636860,-480.0,0.00019965,2]
[359173715,1745772636870,-500.0,0.00019965,2]
[359173716,1745772636879,-500.0,0.00019965,2]
[359173717,1745772636890,-509.68154245,0.00019965,2]
[359173718,1745772636901,-480.0,0.00019965,2]
[359173719,1745772636915,-500.0,0.00019965,2]
[359173720,1745772636927,-480.0,0.00019965,2]
[359173721,1745772636936,-500.0,0.00019965,2]
[359173722,1745772636947,-500.0,0.00019965,2]
[359173723,1745772636958,-521.22157018,0.00019965,2]
[359173724,1745772636967,-480.0,0.00019965,2]
[359173725,1745772636977,-525.30811176,0.00019965,2]
[359173726,1745772636987,-513.81165006,0.00019965,2]
[359173727,1745772636996,-500.0,0.00019965,2]
[359173728,1745772637006,-500.0,0.00019965,2]
[359173729,1745772637016,-300.0,0.00019965,2]
[359173730,1745772637026,-500.0,0.00019965,2]
[359173731,1745772637035,-480.0,0.00019965,2]
[359173732,1745772637044,-505.73454066,0.00019965,2]
[359173733,1745772637054,-500.0,0.00019965,2]
[359173734,1745772637063,-500.0,0.00019965,2]
[359173735,1745772637074,-500.0,0.00019965,2]
[359173736,1745772637084,-500.0,0.00019965,2]
[359173737,1745772637094,-480.0,0.00019965,2]
[359173738,1745772637103,-500.0,0.00019965,2]
[359173739,1745772637113,-504.14933779,0.00019965,2]
[359173740,1745772637125,-480.0,0.00019965,2]
[359173741,1745772637135,-500.0,0.00019965,2]
[359173742,1745772637144,-480.0,0.00019965,2]
[359173743,1745772637153,-511.67545393,0.00019965,2]
[359173744,1745772637164,-480.0,0.00019965,2]
[359173745,1745772637173,-500.0,0.00019965,2]
[359173746,1745772637183,-500.0,0.00019965,2]
[359173747,1745772637193,-500.0,0.00019965,2]
[359173748,1745772637203,-500.0,0.00019965,2]
[359173749,1745772637212,-500.0,0.00019965,2]
[359173750,1745772637222,-567.72,0.00019965,2]
[359173751,1745772637232,-560.12,0.00019965,2]
[359173752,1745772637241,-500.0,0.00019965,2]
[359173753,1745772637251,-500.0,0.00019965,2]
[359173754,1745772637261,-500.0,0.00019965,2]
[359173755,1745772637271,-500.0,0.00019965,2]
[359173756,1745772637280,-520.45,0.00019965,2]
[359173757,1745772637290,-480.0,0.00019965,2]
[359173758,1745772637299,-404.20985566,0.00019965,2]
[359173759,1745772637308,-480.0,0.00019965,2]
[359173760,1745772637317,-480.0,0.00019965,2]
[359173761,1745772637326,-500.0,0.00019965,2]
[359173762,1745772637336,-500.0,0.00019965,2]
[359173763,1745772637347,-500.0,0.00019965,2]
[359173764,1745772637357,-480.0,0.00019965,2]
[359173765,1745772637367,-508.07045442,0.00019965,2]
[359173766,1745772637376,-498.54864244,0.00019965,2]
[359173767,1745772637387,-500.0,0.00019965,2]
[359173768,1745772637396,-509.39,0.00019965,2]
[359173769,1745772637406,-500.0,0.00019965,2]
[359173770,1745772637415,-480.0,0.00019965,2]
[359173771,1745772637425,-506.47391993,0.00019965,2]
[359173772,1745772637435,-541.56,0.00019965,2]
[359173773,1745772637445,-500.0,0.00019965,2]
[359173774,1745772637454,-908.94,0.00019965,2]
[359173775,1745772637463,-157.61980786,0.00019965,2]
[359173776,1745772637474,-500.0,0.00019965,2]
[359173777,1745772637483,-500.0,0.00019965,2]
[359173778,1745772637493,-505.91183549,0.00019965,2]
[359173779,1745772637503,-500.0,0.00019965,2]
[359173780,1745772637513,-480.0,0.00019965,2]
[359173781,1745772637523,-534.91,0.00019965,2]
[359173782,1745772637532,-500.0,0.00019965,2]
[359173783,1745772637542,-515.6436523,0.00019965,2]
[359173784,1745772637552,-500.0,0.00019965,2]
[359173785,1745772637562,-500.0,0.00019965,2]
[359173786,1745772637571,-513.73,0.00019965,2]
[359173787,1745772637581,-500.0,0.00019965,2]
[359173788,1745772637591,-509.60914596,0.00019965,2]
[359173789,1745772637601,-500.0,0.00019965,2]
[359173790,1745772637610,-500.0,0.00019965,2]
[359173791,1745772637620,-480.0,0.00019965,2]
[359173792,1745772637629,-594.25,0.00019965,2]
[359173793,1745772637639,-500.0,0.00019965,2]
[359173794,1745772637648,-480.0,0.00019965,2]
[359173795,1745772637658,-500.0,0.00019965,2]
[359173796,1745772637667,-480.0,0.00019965,2]
[359173797,1745772637676,-500.0,0.00019965,2]
[359173798,1745772637685,-505.07126614,0.00019965,2]
[359173799,1745772637695,-519.98539353,0.00019965,2]
[359173800,1745772637705,-500.0,0.00019965,2]
[359173801,1745772637714,-500.0,0.00019965,2]
[359173802,1745772637724,-480.0,0.00019965,2]
[359173803,1745772637734,-502.55360355,0.00019965,2]
[359173804,1745772637743,-500.0,0.00019965,2]
[359173805,1745772637753,-480.0,0.00019965,2]
[359173806,1745772637762,-511.28334102,0.00019965,2]
[359173807,1745772637773,-502.16129572,0.00019965,2]
[359173808,1745772637782,-500.0,0.00019965,2]
[359173809,1745772637792,-500.0,0.00019965,2]
[359173810,1745772637801,-480.0,0.00019965,2]
[359173811,1745772637811,-150.0,0.00019965,2]
[359173812,1745772637821,-150.0,0.00019965,2]
[359173813,1745772637830,-150.0,0.00019965,2]
[359173814,1745772637840,-480.0,0.00019965,2]
[359173815,1745772637849,-480.0,0.00019965,2]
[359173816,1745772637858,-1721.21,0.00019965,2]
[359173817,1745772637867,-701.59,0.00019965,2]
[359173818,1745772637877,-480.0,0.00019965,2]
[359173819,1745772637887,-480.0,0.00019965,2]
[359173820,1745772637896,-811.45,0.00019965,2]
[359173821,1745772637905,-814.09,0.00019965,2]
[359173822,1745772637915,-150.0,0.00019965,2]
[359173823,1745772637924,-500.0,0.00019965,2]
[359173824,1745772637934,-500.0,0.00019966,2]
[359173825,1745772637943,-500.0,0.00019966,2]
[359173827,1745772637953,-500.0,0.00019966,2]
[359173828,1745772637962,-500.0,0.00019966,2]
[359173829,1745772637971,-500.0,0.00019966,2]
[359173830,1745772637981,-480.0,0.00019966,2]
[359173831,1745772637991,-500.0,0.00019966,2]
[359173832,1745772638000,-480.0,0.00019966,2]
[359173833,1745772638010,-480.0,0.00019969,2]
[359173834,1745772638019,-372.25,0.00019969,2]
[359173835,1745772638029,-180.92,0.00019969,2]
[359173836,1745772638038,-410.47,0.00019969,2]
[359173837,1745772638047,-297.93,0.00019969,2]
[359173838,1745772638056,-185.83,0.00019969,2]
[359173839,1745772638066,-151.7,0.00019969,2]
[359173840,1745772638075,-480.49,0.00019969,2]
[359173842,1745772638085,-191.19,0.00019969,2]
[359173843,1745772638094,-195.52,0.00019969,2]
[359173844,1745772638104,-290.38,0.00019969,2]
[359173845,1745772638113,-197.67,0.00019969,2]
[359173846,1745772638123,-437.68,0.00019969,2]
[359173847,1745772638133,-218.6,0.00019969,2]
[359173848,1745772638142,-496.56,0.00019969,2]
[359173849,1745772638151,-275.12,0.00019969,2]
[359173850,1745772638161,-315.37,0.00019969,2]
[359173851,1745772638171,-480.0,0.00019969,2]
[359173852,1745772638180,-164.11,0.00019969,2]
[359173853,1745772638190,-178.48,0.00019969,2]
[359173854,1745772638199,-480.0,0.00019969,2]
[359173855,1745772638210,-480.0,0.00019969,2]
[359173856,1745772638219,-193.77,0.00019969,2]
[359173857,1745772638229,-480.0,0.00019969,2]
[359173858,1745772638239,-443.76,0.00019969,2]
[359173859,1745772638249,-197.47,0.00019969,2]
[359173860,1745772638258,-349.76,0.00019969,2]
[359173861,1745772638268,-480.0,0.00019969,2]
[359173862,1745772638278,-431.62,0.00019969,2]
[359173863,1745772638287,-190.26,0.00019969,2]
[359173864,1745772638296,-312.09,0.00019969,2]
[359173865,1745772638305,-444.65,0.00019969,2]
[359173866,1745772638315,-480.0,0.00019969,2]
[359173867,1745772638324,-181.71,0.00019969,2]
[359173868,1745772638333,-386.13,0.00019969,2]
[359173869,1745772638342,-520.0,0.00019969,2]
[359173870,1745772638356,-480.0,0.00019969,2]
[359173871,1745772638365,-480.0,0.00019969,2]
[359173872,1745772638374,-365.6,0.00019969,2]
[359173873,1745772638383,-480.0,0.00019969,2]
[359173874,1745772638393,-24919.44,0.00019969,2]
[359173875,1745772638402,-480.0,0.00019969,2]
[359173876,1745772638411,-480.0,0.00019969,2]
[359173877,1745772638420,-480.0,0.00019969,2]
[359173878,1745772638430,-562.67,0.00019969,2]
[359173879,1745772638442,-4616.1,0.00019969,2]
[359173880,1745772638452,-480.0,0.00019969,2]
[359173881,1745772638461,-2173.3,0.00019969,2]
[359173882,1745772638472,-480.0,0.00019969,2]
[359173883,1745772638481,-480.0,0.00019969,2]
[359173884,1745772638490,-813.03,0.00019969,2]
[359173885,1745772638500,-414.84,0.00019969,2]
[359173886,1745772638509,-480.0,0.00019969,2]
[359173887,1745772638518,-480.0,0.00019969,2]
[359173888,1745772638527,-480.0,0.00019969,2]
[359173890,1745772638536,-480.0,0.00019969,2]
[359173892,1745772638545,-480.0,0.00019969,2]
[359173894,1745772638554,-480.0,0.00019969,2]
[359173896,1745772638563,-480.0,0.00019969,2]
[359173898,1745772638573,-480.0,0.00019969,2]
[359173900,1745772638582,-1411.88,0.00019969,2]
[359173902,1745772638591,-610.3664062,0.00019969,2]
[359173904,1745772638601,-480.0,0.00019969,2]
[359173906,1745772638610,-480.0,0.00019969,2]
[359173908,1745772638619,-480.0,0.00019969,2]
[359173910,1745772638628,-480.0,0.00019969,2]
[359173913,1745772638637,-619.23,0.00019969,2]
[359173916,1745772638646,-581.7548013,0.00019969,2]
[359173918,1745772638655,-480.0,0.00019969,2]
[359173920,1745772638664,-24279.41,0.00019969,2]
[359173922,1745772638673,-480.0,0.00019969,2]
[359173924,1745772638683,-480.0,0.00019969,2]
[359173925,1745772638694,-480.0,0.00019969,2]
[359173927,1745772638703,-480.0,0.00019969,2]
[359173928,1745772638714,-480.0,0.00019969,2]
[359173929,1745772638724,-5726.62,0.00019969,2]
[359173930,1745772638734,-480.0,0.00019969,2]
[359173931,1745772638745,-503.0448677,0.00019969,2]
[359173932,1745772638754,-480.0,0.00019969,2]
[359173933,1745772638763,-480.0,0.00019969,2]
[359173934,1745772638772,-480.0,0.00019969,2]
[359173935,1745772638781,-283.58,0.00019969,2]
[359173936,1745772638790,-480.0,0.00019969,2]
[359173937,1745772638799,-480.0,0.00019969,2]
[359173938,1745772638809,-480.0,0.00019969,2]
[359173939,1745772638820,-480.0,0.00019969,2]
[359173940,1745772638832,-480.0,0.00019969,2]
[359173941,1745772638842,-480.0,0.00019969,2]
[359173942,1745772638852,-480.0,0.00019969,2]
[359173943,1745772638861,-480.0,0.00019969,2]
[359173944,1745772638871,-480.0,0.00019969,2]
[359173945,1745772638880,-299.88699999,0.00019969,2]
[359173946,1745772638889,-480.0,0.00019969,2]
[359173947,1745772638898,-1253.5,0.00019969,2]
[359173948,1745772638907,-301.76083145,0.00019969,2]
[359173949,1745772638916,-151.0,0.00019969,2]
[359173950,1745772638925,-480.0,0.00019969,2]
[359173951,1745772638935,-480.0,0.00019969,2]
[359173952,1745772638944,-480.0,0.00019969,2]
[359173953,1745772638956,-1155.27,0.00019969,2]
[359173954,1745772639013,-1070.43,0.00019969,2]
[359173955,1745772639023,-4224.2,0.00019969,2]
[359173956,1745772639033,-480.0,0.00019969,2]
[359173957,1745772639043,-480.0,0.00019969,2]
[359173958,1745772639052,-480.0,0.00019969,2]
[359173959,1745772639061,-480.0,0.00019969,2]
[359173960,1745772639070,-480.0,0.00019969,2]
[359173961,1745772639079,-1400.38,0.00019969,2]
[359173962,1745772639089,-153.44,0.00019969,2]
[359173963,1745772639098,-480.0,0.00019969,2]
[359173964,1745772639108,-520.81232684,0.0001997,2]
[359173965,1745772639117,-480.0,0.0001997,2]
[359173966,1745772639126,-480.0,0.0001997,2]
[359173967,1745772639136,-480.0,0.0001997,2]
[359173968,1745772639145,-480.0,0.0001997,2]
[359173969,1745772639154,-396.72,0.0001997,2]
[359173970,1745772639164,-480.0,0.0001997,2]
[359173971,1745772639173,-480.0,0.0001997,2]
[359173972,1745772639183,-199.8,0.0001997,2]
[359173973,1745772639192,-1243.84,0.0001997,2]
[359173974,1745772639201,-1249.9,0.0001997,2]
[359173975,1745772639211,-480.0,0.0001997,2]
[359173976,1745772639220,-156.67,0.0001997,2]
[359173977,1745772639229,-480.0,0.0001997,2]
[359173978,1745772639239,-217.21,0.0001997,2]
[359173979,1745772639249,-421.79,0.0001997,2]
[359173980,1745772639258,-480.0,0.0001997,2]
[359173981,1745772639267,-170.78,0.0001997,2]
[359173982,1745772639276,-218.43,0.0001997,2]
[359173983,1745772639286,-480.0,0.0001997,2]
[359173984,1745772639295,-161.57,0.0001997,2]
[359173985,1745772639305,-480.0,0.0001997,2]
[359173986,1745772639314,-612.71,0.0001997,2]
[359173987,1745772639324,-480.0,0.0001997,2]
[359173988,1745772639333,-293.16,0.0001997,2]
[359173989,1745772639343,-233.40312279,0.0001997,2]
[359173990,1745772639356,-461.7212179,0.0001997,2]
[359173991,1745772639366,-480.0,0.0001997,2]
[359173992,1745772639375,-500.0,0.0001997,2]
[359173993,1745772639385,-500.0,0.00019971,2]
[359173994,1745772639395,-396.658,0.00019971,2]
[359173995,1745772639404,-57087.9423333,0.00019971,2]
[359173996,1745772639414,-4812.6125771,0.00019971,2]
[359173997,1745772639426,-3481.1782493,0.00019971,2]
[359173998,1745772639436,-459.6054091,0.00019971,2]
[359173999,1745772639446,-151.99034023,0.00019972,2]
[359174000,1745772639457,-500.0,0.00019972,2]
[359174001,1745772639466,-999.0,0.00019972,2]
[359174002,1745772639475,-999.0,0.00019972,2]
[359174003,1745772639484,-359.0,0.00019973,2]
[359174004,1745772639495,-162.25193849,0.00019973,2]
[359174005,1745772639504,-2061.0,0.00019973,2]
[359174006,1745772639514,-500.0,0.00019973,2]
[359174007,1745772639523,-500.0,0.00019973,2]
[359174008,1745772639533,-500.0,0.00019973,2]
[359174009,1745772639542,-500.0,0.00019973,2]
[359174010,1745772639551,-617.67244674,0.00019976,2]
[359174011,1745772639561,-151.0,0.00019978,2]
[359174012,1745772639570,-180.41928909,0.00019978,2]
[359174013,1745772639579,-480.0,0.00019978,2]
[359174014,1745772639589,-480.0,0.00019978,2]
[359174015,1745772639599,-480.0,0.00019978,2]
[359174016,1745772639608,-480.0,0.00019978,2]
[359174017,1745772639618,-480.0,0.00019978,2]
[359174018,1745772639627,-318.5,0.00019978,2]
[359174019,1745772639636,-480.0,0.00019978,2]
[359174020,1745772639646,-480.0,0.00019978,2]
[359174021,1745772639655,-480.0,0.00019978,2]
[359174022,1745772639665,-402.07,0.00019978,2]
[359174023,1745772639675,-480.0,0.00019978,2]
[359174024,1745772639684,-480.0,0.00019978,2]
[359174025,1745772639693,-601.71,0.00019978,2]
[359174026,1745772639703,-178.91,0.00019978,2]
[359174027,1745772639712,-480.0,0.00019978,2]
[359174028,1745772639722,-480.0,0.00019978,2]
[359174029,1745772639732,-514.53,0.00019978,2]
[359174030,1745772639742,-196.3,0.00019978,2]
[359174031,1745772639751,-366.62,0.00019978,2]
[359174032,1745772639760,-480.0,0.00019978,2]
[359174033,1745772639770,-480.0,0.00019978,2]
[359174034,1745772639779,-353.85,0.00019978,2]
[359174035,1745772639788,-236.6,0.00019978,2]
[359174036,1745772639798,-200.79,0.00019978,2]
[359174037,1745772639807,-480.0,0.00019978,2]
[359174038,1745772639817,-566.83955334,0.00019978,2]
[359174039,1745772639826,-480.0,0.00019978,2]
[359174040,1745772639835,-908.94,0.00019978,2]
[359174041,1745772639844,-520.0,0.00019979,2]
[359174042,1745772639853,-520.0,0.00019979,2]
[359174043,1745772639863,-151.0,0.0001998,2]
[359174044,1745772639873,-225.22249639,0.00019981,2]
[359174045,1745772639883,-500.0,0.00019981,2]
[359174046,1745772639892,-480.0,0.00019981,2]
[359174047,1745772639902,-480.0,0.00019981,2]
[359174048,1745772639911,-1721.21,0.00019981,2]
[359174049,1745772639920,-701.59,0.00019981,2]
[359174050,1745772639929,-480.0,0.00019981,2]
[359174052,1745772639939,-480.0,0.00019981,2]
[359174053,1745772639948,-811.45,0.00019981,2]
[359174054,1745772639957,-814.09,0.00019981,2]
[359174055,1745772639967,-480.0,0.00019982,2]
[359174056,1745772639976,-480.0,0.00019982,2]
[359174057,1745772639985,-480.0,0.00019982,2]
[359174058,1745772639994,-480.0,0.00019982,2]
[359174059,1745772640004,-480.0,0.00019982,2]
[359174060,1745772640014,-480.0,0.00019982,2]
[359174061,1745772640024,-480.0,0.00019982,2]
[359174062,1745772640034,-999.0,0.00019982,2]
[359174063,1745772640044,-480.0,0.00019982,2]
[359174064,1745772640054,-480.0,0.00019982,2]
[359174065,1745772640063,-480.0,0.00019982,2]
[359174066,1745772640074,-24919.44,0.00019982,2]
[359174067,1745772640083,-480.0,0.00019982,2]
[359174068,1745772640094,-522.04115985,0.00019982,2]
[359174069,1745772640104,-480.0,0.00019982,2]
[359174070,1745772640114,-562.67,0.00019982,2]
[359174071,1745772640124,-4616.1,0.00019982,2]
[359174072,1745772640134,-480.0,0.00019982,2]
[359174073,1745772640144,-2173.3,0.00019982,2]
[359174074,1745772640154,-480.0,0.00019982,2]
[359174075,1745772640164,-480.0,0.00019982,2]
[359174076,1745772640173,-813.03,0.00019982,2]
[359174078,1745772640183,-480.0,0.00019982,2]
[359174079,1745772640193,-480.0,0.00019982,2]
[359174080,1745772640203,-480.0,0.00019982,2]
[359174081,1745772640213,-480.0,0.00019982,2]
[359174082,1745772640223,-480.0,0.00019982,2]
[359174083,1745772640233,-480.0,0.00019982,2]
[359174084,1745772640243,-480.0,0.00019982,2]
[359174086,1745772640253,-480.0,0.00019982,2]
[359174087,1745772640263,-1411.88,0.00019982,2]
[359174088,1745772640272,-480.0,0.00019982,2]
[359174089,1745772640282,-480.0,0.00019982,2]
[359174090,1745772640292,-480.0,0.00019982,2]
[359174091,1745772640302,-480.0,0.00019982,2]
[359174092,1745772640312,-619.23,0.00019982,2]
[359174093,1745772640321,-480.0,0.00019982,2]
[359174094,1745772640331,-24279.41,0.00019982,2]
[359174095,1745772640341,-480.0,0.00019982,2]
[359174096,1745772640355,-480.0,0.00019982,2]
[359174097,1745772640365,-480.0,0.00019982,2]
[359174098,1745772640375,-480.0,0.00019982,2]
[359174099,1745772640385,-480.0,0.00019982,2]
[359174100,1745772640396,-5726.62,0.00019982,2]
[359174101,1745772640406,-480.0,0.00019982,2]
[359174102,1745772640416,-480.0,0.00019982,2]
[359174103,1745772640426,-480.0,0.00019982,2]
[359174104,1745772640437,-480.0,0.00019982,2]
[359174105,1745772640446,-480.0,0.00019982,2]
[359174106,1745772640456,-480.0,0.00019982,2]
[359174107,1745772640466,-480.0,0.00019982,2]
[359174108,1745772640478,-480.0,0.00019982,2]
[359174109,1745772640488,-480.0,0.00019982,2]
[359174110,1745772640498,-480.0,0.00019982,2]
[359174111,1745772640508,-480.0,0.00019982,2]
[359174112,1745772640518,-480.0,0.00019982,2]
[359174113,1745772640528,-480.0,0.00019982,2]
[359174114,1745772640538,-480.0,0.00019982,2]
[359174115,1745772640548,-1253.5,0.00019982,2]
[359174116,1745772640558,-480.0,0.00019982,2]
[359174117,1745772640567,-480.0,0.00019982,2]
[359174118,1745772640577,-480.0,0.00019982,2]
[359174119,1745772640587,-1155.27,0.00019982,2]
[359174120,1745772640597,-1070.43,0.00019982,2]
[359174121,1745772640607,-4224.2,0.00019982,2]
[359174122,1745772640618,-480.0,0.00019982,2]
[359174123,1745772640628,-480.0,0.00019982,2]
[359174124,1745772640638,-480.0,0.00019982,2]
[359174125,1745772640648,-480.0,0.00019982,2]
[359174126,1745772640658,-480.0,0.00019982,2]
[359174127,1745772640668,-1400.38,0.00019982,2]